Cogmind - Beta 16 @@@ ROGUE MODE // 2025.11.19 @ 12:11:26 Player: lvl5hm Result: Destroyed by Y-45 Defender with Beam Rifle Performance ------------- Evolutions (0) 0 Regions Visited (3) 600 Robots Destroyed (70) 350 Value Destroyed (1647) 1647 Prototype IDs (12) 240 Alien Tech Used (0) 0 Bonus (0) 0 TOTAL SCORE: 2837 Bonus ------- None Cogmind --------- Core Integrity 0/250 Matter 268/300 Energy 200/200 System Corruption 5% Temperature Cool (9) Movement Treading (320) Ox2 Location -8/Recycling Parts ------- > --- POWER (1) -------- Subdweller Power Source > --- PROPULSION (2) --- Light Treads Light Treads > --- UTILITY (2) ------ Huge Storage Unit Medium Armor Plating > --- WEAPON (2) ------- Subdweller Machine Gun Subdweller Machine Gun > --- INVENTORY (25) --- Ion Engine Subdweller Power Source Subdweller Power Source Subdweller Power Source Subdweller Monowheel Subdweller Monowheel Subdweller Monowheel Heat Sink Disposable Heat Sink Structural Scanner Subdweller Optics Subdweller Optics Subdweller Optics Light Armor Plating Scrap Shield Hacking Suite Hacking Suite Power Bank Subdweller Laser Subdweller Laser Subdweller Beam Cannon Battle Cannon Peak State ------------ > --- POWER ------------ Subdweller Power Source > --- PROPULSION ------- Light Treads Light Treads > --- UTILITY ---------- Huge Storage Unit Medium Armor Plating > --- WEAPON ----------- Subdweller Machine Gun Subdweller Machine Gun > --- INVENTORY -------- Ion Engine Subdweller Power Source Subdweller Power Source Subdweller Power Source Subdweller Monowheel Subdweller Monowheel Subdweller Monowheel Heat Sink Disposable Heat Sink Structural Scanner Subdweller Optics Subdweller Optics Subdweller Optics Light Armor Plating Scrap Shield Hacking Suite Hacking Suite Power Bank Subdweller Laser Subdweller Laser Subdweller Beam Cannon Battle Cannon [Rating: 16] Favorites ----------- Power Subdweller Power Source Engine Subdweller Power Source Power Core Light Nuclear Core Propulsion Light Treads Treads Light Treads Wheel Subdweller Monowheel Utility Seismic Detector Device Seismic Detector Storage Huge Storage Unit Protection Scrap Shield Weapon Battle Cannon Energy Gun Small Laser Energy Cannon Subdweller Beam Cannon Ballistic Gun Assault Rifle Ballistic Cannon Battle Cannon Special Weapon Mining Laser Piercing Weapon Makeshift Spear Build | -11 -10 -10 -8 ------- Run | Yrd Mat Sub Rec Slots Evolved . | . . . . Power . | . . . . Propulsion . | . . . . Utility . | . . . . Weapon . | . . . . Parts Attached 37 | 6 9 20 2 Power 7 | . 2 5 . Engine 6 | . 1 5 . Core 1 | . 1 . . Reactor . | . . . . Propulsion 4 | 2 1 1 . Treads 3 | 2 1 . . Leg . | . . . . Wheel 1 | . . 1 . Hover . | . . . . Flight . | . . . . Utility 10 | 2 4 3 1 Device 3 | 1 2 . . Storage 3 | 1 2 . . Processor . | . . . . Hackware . | . . . . Protection 4 | . . 3 1 Artifact . | . . . . Weapon 16 | 2 2 11 1 Energy Gun 7 | 1 2 4 . Energy Cannon 2 | . . 2 . Ballistic Gun 4 | 1 . 2 1 Ballistic Cannon 1 | . . 1 . Launcher . | . . . . Special Weapon 1 | . . 1 . Impact Weapon . | . . . . Slashing Weapon . | . . . . Piercing Weapon 1 | . . 1 . Special Melee Weapon . | . . . . Unidentified Prototypes . | . . . . Parts Lost 9 | . 4 5 . Power 1 | . . 1 . Propulsion 1 | . . 1 . Utility 2 | . 2 . . Weapon 5 | . 2 3 . Highest Loss Streak 2 | . 1 2 . To Critical Strikes . | . . . . Average Backups 10 | . 9 8 20 Power 1 | . 1 1 4 Propulsion 2 | . 2 1 3 Utility 4 | . 4 3 9 Weapon 2 | . 1 2 4 Tool/Special . | . . . . Unused Backups 24 | . 4 6 14 Power 3 | . . . 3 Propulsion 6 | . . 4 2 Utility 12 | . 3 . 9 Weapon 3 | . 1 2 . Tool/Special . | . . . . Average Slot Usage (%) 90 | . 89 88 98 Engine 9 | . . 12 14 Core 3 | . 11 . . Treads 26 | . 27 24 28 Wheel 1 | . . 3 . Device 6 | . 6 5 12 Storage 9 | . 14 5 14 Protection 5 | . . 8 1 Energy Gun 9 | . 19 7 . Energy Cannon 3 | . . 2 11 Ballistic Gun 3 | . 8 1 2 Ballistic Cannon 6 | . . 8 12 Special Weapon 1 | . . 2 . Piercing Weapon 2 | . . 3 . Peak Build Rating 16 | 6 10 15 16 Average Rating 11 | 4 8 12 14 On Entrance 7 | . 6 10 12 Avg Prop Armor Cover (%) 6 | . . 6 . Naked Turns . | . . . . Heaviest Build 100 | 10 88 90 100 Greatest Support 40 | 40 40 40 40 Greatest Overweight (x) 4 | . 2 4 2 Average Overweight (x) . | . . . 2 Largest Inventory Capacity 25 | 8 25 25 25 Average Capacity 16 | 6 17 13 25 Most Carried 24 | 1 15 22 24 Average Carried 11 | . 9 8 21 Final Capacity 25 | 8 25 25 25 Final Carried 23 | 1 13 22 23 Class Distribution -------------------- 64% | Mutant 23% | Subdweller-Mutant 12% | Scavenger-Mutant Dominant Class ---------------- Mutant | -10/Materials Mutant | -10/Subcaves Mutant | -8/Recycling Resources | -11 -10 -10 -8 ----------- Run | Yrd Mat Sub Rec Matter Collected 1557 | 272 265 701 319 Remotely . | . . . . Salvage Created 2705 | 101 975 969 660 Parts 155 | 10 54 72 19 Haulers Intercepted 2 | . 2 . . Recyclers Shooed 15 | . 5 . 10 Parts Field Recycled . | . . . . Retrieved Matter . | . . . . Parts Self-Destructed 27 | . . 27 . Prevented 1 | . . 1 . Parts Restored . | . . . . Kills | -11 -10 -10 -8 ------- Run | Yrd Mat Sub Rec Combat Hostiles Destroyed 45 | . 17 27 1 Guns 28 | . 17 10 1 Cannons 16 | . . 16 . Classes Destroyed 11 | 2 6 3 . Builder 3 | . 1 . 2 Tunneler 2 | 2 . . . Hauler 2 | . 2 . . Recycler 11 | 1 2 . 8 Operator 2 | . 2 . . Turret 2 | . . 2 . Watcher 3 | . 3 . . Swarmer 12 | . 5 7 . Grunt 13 | . 12 1 . Sentry 2 | . . 1 1 Subdweller 18 | . . 18 . Best Kill Streak 6 | 3 3 4 6 Combat Bots Only 4 | . 3 4 1 Max Kills in Single Turn 2 | 1 1 2 1 Gunslinging 1 | . . 1 . Exploded . | . . . . Melee . | . . . . Uniques/NPCs Destroyed . | . . . . Combat | -11 -10 -10 -8 -------- Run | Yrd Mat Sub Rec Hostile Shots Fired 192 | . 74 117 1 Missed 59 | . 20 39 . Hits 133 | . 54 78 1 Projectile 133 | . 54 78 1 Critical Strikes 1 | . 1 . . Damage Taken 2147 | . 557 1575 15 Core 255 | . 89 151 15 Absorbed by Shields . | . . . . Regen/Repaired (Parts) 117 | . 117 . . Core Remaining (%) 100 | 100 . . . Volleys Fired 252 | 4 80 108 60 Largest 2 | 2 2 2 2 Hottest 120 | 70 80 120 80 Shots Fired 403 | 8 159 175 61 Gun 249 | 8 159 76 6 Cannon 142 | . . 87 55 Launcher . | . . . . Special 12 | . . 12 . Kinetic 186 | 4 65 72 45 Thermal 203 | 4 94 89 16 Explosive . | . . . . Electromagnetic 14 | . . 14 . Robot Hit Streak 20 | 2 11 20 10 Robot Miss Streak 5 | 3 3 4 5 Penetration Max . | . . . . Secondary Targets 5 | . 4 1 . Max Gunslinging Chain 1 | . 1 1 . Shots Hit Robots 224 | 3 100 101 20 Core Hits 99 | 3 48 36 12 Critical Kills 3 | . . 3 . Critical Parts Destroyed . | . . . . Critical Strikes 8 | . 2 4 2 Burn 2 | . 2 . . Meltdown 1 | . . 1 . Destroy 2 | . . 2 . Blast 3 | . . 1 2 Melee Attacks 25 | . . 25 . Impact . | . . . . Slashing . | . . . . Piercing 25 | . . 25 . Sneak Attacks . | . . . . Combat Hostiles . | . . . . Follow-up Attacks . | . . . . Damage Inflicted 3443 | 39 1226 1723 455 Guns 1907 | 39 1226 580 62 Cannons 1536 | . . 1143 393 Explosions . | . . . . Melee . | . . . . Ramming . | . . . . Kinetic 1676 | 26 533 662 455 Thermal 1612 | 13 693 906 . Explosive . | . . . . Electromagnetic 155 | . . 155 . Impact . | . . . . Slashing . | . . . . Piercing . | . . . . Highest Corruption 5 | . . 5 5 Average Corruption 5 | . . 5 5 Corruption Purged . | . . . . Corruption Blocked . | . . . . Effects 57 | . . 23 34 Message Errors 12 | . . 4 8 Matter Fused 20 | . . 6 14 Heat Flow Errors 2 | . . 1 1 Energy Discharges 7 | . . 4 3 Parts Fused 1 | . . 1 . Data Loss (minor) 7 | . . 4 3 Data Loss (major) 2 | . . 1 1 Alerts 5 | . . 2 3 Weapon Failures 1 | . . . 1 Overload Shots . | . . . . Overflow Damage 10 | . . 8 2 Projectiles 10 | . . 8 2 Explosions . | . . . . Melee . | . . . . Knockbacks 14 | . . 11 3 Impact . | . . . . Kinetic 12 | . . 10 2 Secondary 2 | . . 1 1 Self-Inflicted Damage . | . . . . Shots . | . . . . Rammed . | . . . . Targets Rammed . | . . . . Kicked . | . . . . Crushed . | . . . . Highest Temperature 188 | . 84 143 188 Average Temperature 30 | . 23 29 55 Received Heat Transfer 570 | . 246 315 9 Siege Activations . | . . . . Martial Activations . | . . . . Shielding Activations . | . . . . Robots Disrupted . | . . . . Combat Hostiles . | . . . . Robots Corrupted . | . . . . Combat Hostiles . | . . . . Parts Fried 1 | . . 1 . Impact Corruptions . | . . . . Robots Melted 1 | . . 1 . Combat Hostiles 1 | . . 1 . Parts Melted 3 | . 2 1 . Heat Transferred 3398 | 37 1971 1390 . Parts Sabotaged . | . . . . Parts Stolen . | . . . . Parts Stripped . | . . . . Power Chain Reactions . | . . . . Alert | -11 -10 -10 -8 ------- Run | Yrd Mat Sub Rec Maximum Alert Level . | . . . . Low Security (%) 100 | 100 100 . 100 Level 1 . | . . . . Level 2 . | . . . . Level 3 . | . . . . Level 4 . | . . . . Level 5 . | . . . . High Security . | . . . . Max Security . | . . . . Peak Influence 150 | 10 122 . 150 Initial 150 | . . . 150 Average 28 | . 24 . 36 Influence Increases 1232 | 15 476 485 256 Destroy 0b10 Robot/C 580 | . 340 220 20 Destroy 0b10 Robot/NC 115 | 15 50 . 50 Destroy Leader 90 | . 80 10 . Successful Hack 8 | . 4 . 4 Select Force Hacks 150 | . . . 150 Disable Machine 15 | . . . 15 Destroy Structure 19 | . 2 . 17 Lose Combat Pursuer 255 | . . 255 . Influence Decreases 1201 | 15 476 172 538 Entered New Map 163 | . . . 163 Time Decay 998 | 15 446 162 375 Lost Part 40 | . 30 10 . Squads Dispatched 4 | . 4 . . Investigation 1 | . 1 . . Extermination . | . . . . Reinforcement 3 | . 3 . . Assault . | . . . . Garrison . | . . . . Intercept . | . . . . Searches Triggered . | . . . . Construction Impeded . | . . . . Haulers Reinforced . | . . . . Active Scanning Responses . | . . . . Cargo Convoy Interrupts . | . . . . Stealth | -11 -10 -10 -8 --------- Run | Yrd Mat Sub Rec Distress Signals 3 | . 3 . . Communications Jammed . | . . . . Distress Signals . | . . . . Times Spotted 66 | . 33 32 1 Peak Tracking Total 4 | . 4 4 . Tactical Retreats 7 | . . 7 . Traps | -11 -10 -10 -8 ------- Run | Yrd Mat Sub Rec Traps Triggered 4 | . 1 3 . Indirectly . | . . . . Trap Hack Attempts . | . . . . Triggered . | . . . . Disarmed . | . . . . Reprogrammed . | . . . . Reused . | . . . . Traps Extracted . | . . . . Installed . | . . . . Triggered . | . . . . Machines | -11 -10 -10 -8 ---------- Run | Yrd Mat Sub Rec Machines Disabled 2 | . . 1 1 Max in Single Turn 1 | . . 1 1 Machines Repaired . | . . . . Machines Dismantled . | . . . . Machines Sabotaged . | . . . . Overloaded Fab Kills . | . . . . Hacking | -11 -10 -10 -8 --------- Run | Yrd Mat Sub Rec Machines Accessed 14 | . 5 2 7 Terminals 6 | . 4 . 2 Fabricators . | . . . . Repair Stations 1 | . 1 . . Recycling Units 5 | . . . 5 Scanalyzers . | . . . . Garrison Access . | . . . . Total Hacks 30 | . 11 6 13 Successful 19 | . 5 6 8 Failed 11 | . 6 . 5 Catastrophic 1 | . 1 . . Database Lockouts . | . . . . Manual 20 | . 7 . 13 Terminals 14 | . 7 . 7 Fabricators . | . . . . Repair Stations 4 | . 4 . . Recycling Units 6 | . . . 6 Scanalyzers . | . . . . Garrison Access . | . . . . Terminal Hacks 7 | . 1 6 . Record 5 | . . 5 . Recall Investigation 1 | . 1 . . Proto ID Catalog 1 | . . 1 . Fabricator Hacks . | . . . . Repair Station Hacks 2 | . 2 . . Scan Component 1 | . 1 . . Repair 1 | . 1 . . Recycling Unit Hacks . | . . . . Scanalyzer . | . . . . Garrison Access Hacks . | . . . . Unauthorized Hacks 10 | . 2 . 8 Terminals 5 | . 2 . 3 Botnet 1 | . . . 1 Skim 4 | . 2 . 2 Fabricators . | . . . . Repair Stations . | . . . . Recycling Units 5 | . . . 5 Tunnel 5 | . . . 5 Scanalyzers . | . . . . Garrison Access . | . . . . Data Cores Recovered . | . . . . Used . | . . . . Hacking Detections 4 | . 3 . 1 Full Trace Events . | . . . . Feedback Events . | . . . . Feedback Blocked . | . . . . Robot Schematics Acquired . | . . . . Robots Built . | . . . . Authchips . | . . . . Time . | . . . . Total Robot Build Rating . | . . . . Part Schematics Acquired . | . . . . Parts Built . | . . . . Authchips . | . . . . Time . | . . . . Total Part Build Rating . | . . . . Part Studies Acquired . | . . . . Parts Repaired 1 | . 1 . . Time 26 | . 26 . . Parts Recycled . | . . . . Recycled Matter . | . . . . Retrieved Matter . | . . . . Retrieved Components . | . . . . Parts Scanalyzed . | . . . . Part Schematics Acquired . | . . . . Parts Damaged . | . . . . Bothacking | -11 -10 -10 -8 ------------ Run | Yrd Mat Sub Rec Used RIF Installer . | . . . . Robots Hacked . | . . . . Non-combat . | . . . . Combat . | . . . . Robot Hacks Applied . | . . . . Relay Couplers Released . | . . . . Fabnet Peak Effective % . | . . . . Robots Rewired . | . . . . Allies Hacked . | . . . . Hacks Repelled . | . . . . Allies | -11 -10 -10 -8 -------- Run | Yrd Mat Sub Rec Total Allies . | . . . . Largest Group . | . . . . Highest-Rated Group . | . . . . Highest-Rated Ally . | . . . . Total Orders . | . . . . Ally Attacks . | . . . . Total Damage . | . . . . Kills . | . . . . Allies Corrupted . | . . . . Allies Melted . | . . . . Intel | -11 -10 -10 -8 ------- Run | Yrd Mat Sub Rec Active Infowar (turns) 3831 | 30 911 1655 1235 Seismic 3831 | 30 911 1655 1235 Robot Analysis Total . | . . . . Derelict Logs Recovered 1 | . . 1 . Drone Launches . | . . . . Drone Recoveries . | . . . . Exploration | -11 -10 -10 -8 ------------- Run | Yrd Mat Sub Rec Turns Passed 7971 | 93 1927 4617 1334 Spaces Moved 3463 | 49 816 2225 373 Core 6 | 6 . . . Treads 2761 | 43 816 1529 373 Legs . | . . . . Wheels 696 | . . 696 . Hover . | . . . . Flight . | . . . . Fastest Speed 50 | 50 160 120 320 Average Speed 200 | 146 193 183 320 Slowest Speed 320 | 160 320 320 320 Overloaded Moves . | . . . . Propulsion Burnouts . | . . . . Robots Hopped . | . . . . Potential Cave-ins . | . . . . Cave-ins Triggered 1 | . . 1 . Exploration Rate (%) 64 | 5 98 90 66 Regions Visited 3 Branch Regions 2 Pre-discovered Areas 6 | . . 1 5 Known Exits Taken . | . . . . Unknown Exits Taken 3 | 1 1 1 . Scrap Searched 5 | . . 5 . Spaces Dug 32 | . . 17 15 Terrain Destroyed 45 | . . 21 24 Melee 17 | . . 17 . Projectile 28 | . . 4 24 AOE . | . . . . Terrain Rammed . | . . . . Walls Destroyed . | . . . . Machines Disabled . | . . . . Actions | -11 -10 -10 -8 --------- Run | Yrd Mat Sub Rec Total 4040 | 59 1004 2526 451 Wait 155 | . 73 72 10 Move 3460 | 48 815 2224 373 Hop . | . . . . Pick Up 51 | 1 18 29 3 Fast Attach 19 | 6 4 9 . Attach 7 | . 3 2 2 Detach 2 | . 1 . 1 Swap 30 | . 3 25 2 Drop 26 | . 7 19 . Fire 252 | 4 80 108 60 Melee 25 | . . 25 . Ram . | . . . . Kick . | . . . . Crush . | . . . . Escape Stasis . | . . . . Rewire . | . . . . Trap . | . . . . Miscellaneous 13 | . . 13 . Route ------- -11/Scrapyard -10/Materials (discovered 5 exits: [*Mat x3] / [*Min] / *Sub) -10/Subcaves (discovered 3 exits: [*Mat x2] / *Rec) -8/Recycling (discovered 1 exit: [*Fac]) History --------- Turn | Location | Event 6 | -11/Scrapyard | Discovered new exit (range 16) 94 | -11/Scrapyard | Entered Materials 312 | -10/Materials | Build established: Mutant 434 | -10/Materials | Discovered new exit (range 13) 532 | -10/Materials | Discovered new exit (range 15) 594 | -10/Materials | Discovered new exit (range 8) 962 | -10/Materials | Repaired Lgt. Treads 976 | -10/Materials | Discovered new exit (range 15) 1486 | -10/Materials | Discovered new exit (range 9) 1603 | -10/Materials | Build established: Scavenger-Mutant 2021 | -10/Materials | Entered Subcaves 2022 | -10/Subcaves | Approached by a straggling Scientist 2095 | -10/Subcaves | Shifting Twisted Machinery released Sub. Optics 2114 | -10/Subcaves | Shifting Twisted Machinery released Riot Gun 2339 | -10/Subcaves | Core integrity fell below 50% 2445 | -10/Subcaves | Build established: Mutant 2533 | -10/Subcaves | A swath of the cavern ceiling suddenly collapsed 2584 | -10/Subcaves | Discovered new exit (range 8) 2937 | -10/Subcaves | Discovered new exit (range 9) 3096 | -10/Subcaves | Visited 4L-MR0's lab 3134 | -10/Subcaves | Found Power Bank 3490 | -10/Subcaves | Shifting Twisted Machinery released Sub. Laser 3509 | -10/Subcaves | Shifting Twisted Machinery released Mak. Spear 3659 | -10/Subcaves | Shifting Twisted Machinery released Riot Gun 3803 | -10/Subcaves | Build established: Subdweller-Mutant 4346 | -10/Subcaves | Build established: Mutant 4623 | -10/Subcaves | Ambushed by Subdwellers from Twisted Machinery 4920 | -10/Subcaves | Build established: Subdweller-Mutant 5091 | -10/Subcaves | A Subdweller sparked back to life 5091 | -10/Subcaves | A Subdweller sparked back to life 5094 | -10/Subcaves | Core integrity fell below 20% 5152 | -10/Subcaves | Learned 4 Materials zone layouts 5308 | -10/Subcaves | Visited Clippyterm 5311 | -10/Subcaves | Learned location of Deep Caves (-6) 5311 | -10/Subcaves | Learned Research security intel 5688 | -10/Subcaves | Discovered new exit (range 13) 5934 | -10/Subcaves | Crushed by falling debris 6281 | -10/Subcaves | Build established: Mutant 6638 | -10/Subcaves | Entered Recycling 7274 | -8/Recycling | Discovered new exit (range 16) 7972 | -8/Recycling | Destroyed by Y-45 Defender with Beam Rifle Last Messages --------------- off. 07824_ R-06 Scavenger destroyed. 07824_ R-06 Scavenger collects Lgt. Ion Engine. 07825_ Acquired 5 matter. 07827_ R-06 Scavenger collects Welding Torch. 07827_ R-06 Scavenger collects Lgt. Ion Engine. 07830_ R-06 Scavenger collects Wheel. 07831_ System corrupted: Battle Cannon jammed. 07835_ System corrupted: Matter fused (-7). 07841_ Acquired 32 matter. 07842_ R-06 Scavenger collects Com. Wheel. 07847_ R-06 Scavenger collects Tractor Beam. 07860_ Acquired 4 matter. 07863_ Acquired 16 matter. 07873_ Discarded Seismic Detector. 07877_ System corrupted: Matter fused (-5). 07956_ EC:T#EMC<#B#MQR /8G>U>6 07961_ Y-45 Defender destroyed. 07971_ Destroyed Tractor Beam. 07971_ Y-45 Defender springs to life. Map ----- +----------------------------------------------------+ | ??# # ############## | | ??# # ########+#########????????????? | | ??# # ##??# #????????????????? | | ??# # ???# """"%#????????????????? | | ?## # ##??# """" #????????????????? | | ?# # #???# """"%#????????????????? | | ?## # ##### #????????????????? | | ??# # + """"%###??????????????? | | ??# # ?# %""%%%# #??????????????? | | ??# # """ # " % "######??????????? | | ??######+## """ + %%% " #??????????? | | ???????# """ ##+######%######??????????? | | ???????# #???####???????????????? | | ???????# #??????????????????????? | | ???########+#####+##+##+###????????????????????? | | ???# ### #????????????????????? | | ???# ### #????????????????????? | | ???# # # ##???????????????????? | | ???# ### #???????????????????? | | ??# ### ##???????????????????? | | ??#############?# #????????????????????? | | ????????????????# ##???????????????????? | | ????????#######?# #???????????????????? | | ????????# #####+##+######%##T####??????????? | | ????????# r =!* ????????? | | ????????# @ r ????????? | | ????????# Y ????????? | | ????????# ########+######## ####???????????? | | ????????## ##?# #?????????????????? | | ?????????# #??# #?????????????????? | | ?????##### #??# [ #?????????????????? | | ????? # #??#% #?????????????????? | | ????""" # #??# ! ! #?????????????????? | | ??# """ # #### [ #?????????????????? | | ??# """ # ""## #?????????????????? | | ??# """ # Y"## %##????????????????? | | ??# """ # ""## [ ##????????????????? | | ??# # #### ! !! ##????????????????? | | ??# """ # #### #?????????????????? | | ??# """ + + #?????????????????? | | ??# """ # ##################????????????????? | | ??# """ # ""#?????????????##????????????????? | | ??# """ # Y"#???????????????????????????????? | | ??# # ""#???????????????????????????????? | | ??# # ###???????????????????????????????? | | ??# # #?????????????????????????????????? | | ??#"" # < #?????????????????????????????????? | | ??#"Y # #?????????????????????????????????? | | ??#"" #####?????????????????????????????????? | | ??# #?????????????????????????????????????? | +----------------------------------------------------+ Best States ------------- Heat Dissipation 25 Energy Generation 15 Energy Capacity 250 Matter Stores 300 Matter Capacity 300 Sight Range 16 Terrain Scan Density 10 Armor Coverage 800 Evasion (%) 40 Recoil Reduction 2 Item Schematics ----------------- None Robot Schematics ------------------ None Fabricated ------------ Nothing Repaired ---------- Lgt. Treads | 16% | -10/Materials Studied --------- None Alien Tech Used ----------------- None Achievements -------------- None Challenges ------------ None Game ------ Seed CannonFactoryRegenerator Manual? 0 Play Time 00:44:39 Cumulative 228.3 hours Start 2025.11.19 @ 11:31:53 End 2025.11.19 @ 12:11:26 Sessions 1 Manual Loads 0 Difficulty Rogue Special Mode None Game No. 175 Rogue 175 Adventurer 0 Explorer 0 Win Type - Total 10 Types 6/0/2/1/0/0/0/1/0/0 Lore% 57 Gallery% 70 Achievement% 63 Wizard Run 0 Options --------- Layout 2 ASCII 0 Keyboard 1 Movement Arrows Keybinds 0 Fullscreen 1 Font 32/Tamsyn Map View 50x44 Zoom Use 0% Tactical HUD 1 Map Filters NONE Filters NONE Steam 1 RUN: 4ea5a80d-1209-4d6b-bccd-f3f615f39297